bitfinex/quotes_SOLUSD_20220113
["timestamp","ask_amount","ask_price","bid_price","bid_amount"]
[1642083776227,65.05122217,156.53,156.37,32.84717756]
[1642083777432,65.05122217,156.53,156.37,33.10717756]
[1642083778031,65.05122217,156.53,156.37,32.84717756]
[1642083778230,64.61,156.52,156.37,32.84717756]
[1642083778530,9.5885,156.48,156.37,32.84717756]
[1642083778732,18.0176876,156.47,156.37,32.84717756]
[1642083778929,20.5746876,156.47,156.37,11.7553]
[1642083779128,18.2676876,156.47,156.37,11.7553]
[1642083779528,33.8563876,156.47,156.37,11.7553]
[1642083780830,27.8563876,156.47,156.37,11.7553]
[1642083781432,27.8563876,156.47,156.37,11.5053]
[1642083781732,9.5912,156.43,156.32,7.67]
[1642083781932,9.5912,156.43,156.33,6.0]
[1642083782159,15.8412,156.43,156.32,78.28]
[1642083782365,9.8412,156.43,156.32,78.28]
[1642083782565,20.68533613,156.42,156.32,82.1167]
[1642083782764,20.68533613,156.42,156.32,76.1167]
[1642083782962,26.68533613,156.42,156.32,76.3667]
[1642083783163,29.7862,156.42,156.32,76.3667]
[1642083783366,29.7862,156.42,156.32,76.1167]
[1642083783564,23.7862,156.42,156.32,76.1167]
[1642083784164,23.7862,156.42,156.32,76.3767]
[1642083784566,23.7862,156.42,156.32,77.84140205]
[1642083784764,23.7862,156.42,156.32,83.84140205]
[1642083784965,23.7862,156.42,156.32,82.6267]
[1642083786066,30.0462,156.42,156.32,82.3667]
[1642083786466,24.0462,156.42,156.32,76.3667]
[1642083786666,24.0462,156.42,156.32,11.7567]
[1642083786870,2.558,156.41,156.32,11.5067]
[1642083787166,6.25,156.41,156.32,11.5067]
[1642083787566,9.8422,156.41,156.32,11.5067]
[1642083787769,20.35787655,156.4,156.32,11.5067]
[1642083787967,29.16587655,156.4,156.32,11.5067]
[1642083788168,26.60787655,156.4,156.32,11.5067]
[1642083788768,20.60787655,156.4,156.32,11.5067]
[1642083788967,0.25,156.4,156.32,11.7667]
[1642083789368,32.8542,156.42,156.32,11.5067]
[1642083789568,30.0362,156.42,156.32,11.5067]
[1642083789770,2.558,156.41,156.32,11.7567]
[1642083789968,6.0,156.41,156.32,11.7567]
[1642083790671,50.37808002,156.42,156.32,11.7567]
[1642083791073,50.62808002,156.42,156.32,11.7567]
[1642083791273,2.558,156.41,156.32,11.7567]
[1642083791474,6.25,156.41,156.32,7.67]
[1642083791672,2.558,156.4,156.32,7.67]
[1642083792073,2.558,156.4,156.29,93.9]
[1642083792074,18.2311896,156.39,156.29,93.9]
[1642083792274,2.558,156.38,156.29,93.9]
[1642083792475,73.418,156.38,156.26,7.98985586]
[1642083792778,8.808,156.38,156.26,7.98985586]
[1642083793275,9.5955,156.36,156.27,3.8383]
[1642083793577,20.59188002,156.35,156.27,4.0883]
[1642083793974,26.59188002,156.35,156.27,4.0883]
[1642083794876,2.559,156.39,156.28,7.67]
[1642083795075,450.8629,156.4,156.33,4.7957]
[1642083795276,346.9,156.4,156.33,12.4657]
[1642083795477,346.9,156.4,156.33,12.7157]
[1642083795679,346.9,156.4,156.33,12.9757]
[1642083796077,296.0,156.4,156.34,1.21470205]
[1642083796279,296.22552217,156.53,156.35,7.67]
[1642083796477,296.22552217,156.53,156.43,4.7922]
[1642083796478,372.50322217,156.53,156.43,4.7922]
[1642083796677,372.50322217,156.53,156.44,7.67]
[1642083796880,21.62072537,156.52,156.44,7.67]
[1642083797078,21.62072537,156.52,156.44,15.39470205]
[1642083797279,21.62072537,156.52,156.45,1.21470205]
[1642083797478,21.62072537,156.52,156.45,15.13470205]
[1642083798285,21.62072537,156.52,156.48,0.0004]
[1642083798481,24.43572537,156.52,156.48,0.0004]
[1642083798980,24.68572537,156.52,156.48,0.0004]
[1642083799580,24.42572537,156.52,156.48,0.0004]
[1642083799981,30.42572537,156.52,156.41,7.67]
[1642083801084,304.805,156.52,156.45,0.0025]
[1642083801385,298.555,156.52,156.45,0.0025]
[1642083801584,296.0,156.52,156.45,0.0025]
[1642083802682,296.0,156.52,156.46,1.21470205]
[1642083802884,296.0,156.52,156.49,4.7902]
[1642083803083,6.06439994,156.51,156.49,5.0402]
[1642083803681,6.06439994,156.51,156.46,7.67]
[1642083804385,6.32439994,156.51,156.46,7.67]
[1642083804983,6.06439994,156.51,156.49,4.7902]
[1642083805786,6.06439994,156.51,156.49,0.0002]
[1642083806386,6.32439994,156.51,156.49,0.0002]
[1642083807887,302.32439994,156.51,156.49,0.0002]
[1642083808289,302.06439994,156.51,156.49,0.0002]
[1642083809518,302.06439994,156.51,156.49,4.7916]
[1642083809719,296.0,156.51,156.49,4.7916]
[1642083809919,296.0,156.51,156.49,6.25630205]
[1642083810120,296.0,156.51,156.5,7.67]
[1642083810619,0.22552217,156.53,156.5,13.92410205]
[1642083810822,0.22552217,156.53,156.5,12.7094]
[1642083814123,0.22552217,156.53,156.5,13.92410205]
[1642083814326,0.22552217,156.53,156.5,14.18410205]
[1642083814728,0.22552217,156.53,156.5,20.18410205]
[1642083814926,0.22552217,156.53,156.5,84.79410205]
[1642083815326,0.22552217,156.53,156.5,20.18410205]
[1642083815526,0.22552217,156.53,156.5,19.92410205]
[1642083815726,0.22552217,156.53,156.5,20.18410205]
[1642083815927,0.22552217,156.53,156.5,19.92410205]
[1642083816529,0.22552217,156.53,156.5,39.62828118]
[1642083816929,0.22552217,156.53,156.5,104.23828118]
[1642083817329,0.26,156.6,156.5,104.23828118]
[1642083817530,296.0,156.61,156.5,115.06321055]
[1642083817728,0.26,156.61,156.5,115.06321055]
[1642083818131,502.446,156.64,156.5,115.06321055]
[1642083818529,505.0,156.64,156.5,107.39321055]
[1642083819830,505.0,156.64,156.52,64.61]
[1642083820034,505.0,156.64,156.58,3.8303]
[1642083820231,426.1524,156.64,156.58,3.8303]
[1642083820434,425.8924,156.64,156.58,4.0803]
[1642083821033,425.8924,156.64,156.58,3.8303]
[1642083821631,426.1424,156.64,156.58,3.8303]
[1642083821833,22.12449689,156.63,156.58,3.8303]
[1642083822034,2.554,156.62,156.58,3.8303]
[1642083822233,298.554,156.63,156.58,3.8303]
[1642083822833,296.0,156.63,156.58,3.8303]
[1642083823237,298.554,156.63,156.58,3.8303]
[1642083823937,321.14148472,156.63,156.57,8.7666]
[1642083824136,321.14148472,156.63,156.49,0.0002]
[1642083824137,327.39148472,156.63,156.49,0.0002]
[1642083824834,296.0,156.61,156.52,3.832]
[1642083825035,22.59155661,156.59,156.52,3.832]
[1642083825235,2.555,156.58,156.52,3.832]
[1642083825436,2.555,156.58,156.52,3.582]
[1642083825734,2.805,156.58,156.52,3.582]
[1642083827538,2.555,156.58,156.52,3.582]
[1642083827740,296.0,156.61,156.52,3.582]
[1642083827937,296.0,156.61,156.52,5.05365054]
[1642083828538,296.0,156.61,156.53,64.61]
[1642083828739,296.0,156.61,156.57,3.8302]
[1642083829243,296.0,156.61,156.57,4.0802]
[1642083829837,296.0,156.61,156.57,0.25]
[1642083830038,296.0,156.61,156.56,9.2]
[1642083830240,296.26,156.61,156.56,9.2]
[1642083830640,315.03232016,156.61,156.56,9.2]
[1642083831240,314.77232016,156.61,156.56,13.0314]
[1642083831641,314.77232016,156.61,156.56,13.2814]
[1642083832038,314.77232016,156.61,156.56,13.0314]
[1642083832643,315.03232016,156.61,156.56,13.0314]
[1642083832842,296.26,156.61,156.56,13.0314]
[1642083833043,296.26,156.61,156.56,13.2814]
[1642083833443,296.26,156.61,156.56,13.0314]
[1642083836344,296.0,156.61,156.56,14.23690794]
[1642083836643,296.0,156.61,156.56,20.74690794]
[1642083837345,296.0,156.61,156.57,7.9899966]
[1642083837544,232.1856,156.61,156.6,64.61]
[1642083837743,232.2,156.61,156.6,91.3777151]
[1642083838043,232.2,156.61,156.6,97.8877151]
[1642083838344,168.3881,156.61,156.6,99.09322304]
[1642083838543,168.4,156.61,156.6,16.91550794]
[1642083839145,168.4,156.61,156.6,20.48440794]
[1642083839647,168.4,156.61,156.6,20.74440794]
[1642083840244,168.4,156.61,156.6,20.48440794]
[1642083840446,168.4,156.61,156.6,14.48440794]
[1642083841147,168.4,156.61,156.6,13.0289]
[1642083841548,171.43219997,156.61,156.6,13.0289]
[1642083841748,168.4,156.61,156.6,13.0289]
[1642083842848,174.46439994,156.61,156.6,13.0289]
[1642083843051,168.4,156.61,156.6,13.0289]
[1642083843452,63.0,156.6,156.58,9.2]
[1642083843649,231.4,156.6,156.57,13.0177]
[1642083844050,3.03219997,156.59,156.57,13.0177]
[1642083844248,231.4,156.6,156.58,3.8305]
[1642083844648,231.4,156.6,156.58,4.0805]
[1642083845550,168.4,156.59,156.58,4.0805]
[1642083845751,174.46439994,156.59,156.58,4.0805]
[1642083845951,168.4,156.59,156.58,4.0805]
[1642083846652,168.4,156.59,156.58,14.48293386]
[1642083847053,168.4,156.59,156.58,14.74293386]
[1642083847853,99.6822,156.59,156.58,85.35293386]
[1642083848054,99.7,156.59,156.58,20.74293386]
[1642083848854,99.7,156.59,156.58,14.74293386]
[1642083849992,99.7,156.59,156.58,14.49293386]
[1642083850191,99.7,156.59,156.58,14.23293386]
[1642083850790,35.8832,156.59,156.58,14.49293386]
[1642083850991,35.9,156.59,156.58,14.49293386]
[1642083851398,35.9,156.59,156.58,79.10293386]
[1642083851595,35.9,156.59,156.58,14.74293386]
[1642083851792,35.9,156.59,156.58,20.74293386]
[1642083852595,35.9,156.59,156.58,14.74293386]
[1642083852994,38.454,156.59,156.58,14.23293386]
[1642083853193,41.48619997,156.59,156.56,3.831]
[1642083853393,2.554,156.58,156.56,3.831]
[1642083854593,64.06439994,156.57,156.56,3.831]
[1642083854795,58.0,156.57,156.56,3.831]
[1642083855794,61.03219997,156.57,156.56,3.831]
[1642083855994,66.61839994,156.57,156.56,3.831]
[1642083856194,66.61839994,156.57,156.54,9.2]
[1642083856195,98.0,156.56,156.48,1.81770008]
[1642083856395,2.555,156.55,156.48,1.81770008]
[1642083856694,8.555,156.55,156.48,1.81770008]
[1642083856895,8.805,156.55,156.46,1.81770008]
[1642083857093,27.3018,156.55,156.46,1.81770008]
[1642083857294,27.0518,156.55,156.49,3.833]
[1642083857795,27.0518,156.55,156.49,0.0002]
[1642083857993,33.3018,156.55,156.49,0.0002]
[1642083859594,27.0518,156.55,156.49,3.8329]
[1642083859795,27.3018,156.55,156.49,3.8329]
[1642083860097,27.0518,156.55,156.49,4.0829]
[1642083860494,24.4968,156.55,156.49,4.0829]
[1642083861497,173.1788,156.56,156.49,68.9529]
[1642083861698,173.1788,156.56,156.49,4.0829]
[1642083862299,173.1788,156.56,156.49,10.0829]
[1642083862502,173.1788,156.56,156.49,4.0829]
[1642083863600,173.1788,156.56,156.49,5.28533386]
[1642083864599,173.1788,156.56,156.49,5.54533386]
[1642083864800,49.146,156.58,156.53,3.8317]
[1642083865100,35.9,156.59,156.54,73.81]
[1642083865304,35.9,156.59,156.54,75.01243386]
[1642083865500,35.9,156.59,156.55,1.20243386]
[1642083865699,35.9,156.59,156.55,10.40243386]
[1642083865902,35.9,156.59,156.55,16.91243386]
[1642083866102,35.9,156.59,156.57,64.61]
[1642083866504,35.9,156.59,156.58,1.20243386]
[1642083866902,35.9,156.59,156.58,0.25]
[1642083867102,35.9,156.59,156.55,10.40243386]
[1642083867301,35.9,156.59,156.56,0.25]
[1642083868305,35.9,156.59,156.57,3.831]
[1642083868506,35.9,156.59,156.55,9.45]
[1642083868706,36.16,156.59,156.55,9.45]
[1642083869808,36.16,156.59,156.55,13.2816]
[1642083872509,35.9,156.59,156.55,13.2816]
[1642083872713,35.9,156.59,156.55,14.48403386]
[1642083872911,35.9,156.59,156.55,14.74403386]
[1642083873213,35.9,156.59,156.55,20.74403386]
[1642083874618,35.9,156.59,156.55,85.35403386]
[1642083875418,101.8766,156.64,156.55,85.35403386]
[1642083875419,78.1993,156.64,156.55,85.35403386]
[1642083876050,1.61896264,156.66,156.55,217.5276299]
[1642083876250,1.61896264,156.66,156.58,19.46915086]
[1642083876453,1.05476264,156.66,156.62,6.14011721]
[1642083876650,77.3874,156.72,156.63,9.2]
[1642083876855,77.3874,156.72,156.65,19.46915086]
[1642083877150,81.03845024,156.72,156.65,35.17915086]
[1642083877351,83.85045024,156.72,156.65,9.45]
[1642083877552,83.85045024,156.72,156.66,3.8274]
[1642083877953,80.1994,156.72,156.66,3.8274]
[1642083878355,108.25849554,156.72,156.66,3.8274]
[1642083878555,86.1994,156.72,156.66,4.0774]
[1642083878953,86.1994,156.72,156.66,3.8274]
[1642083879355,85.9394,156.72,156.66,3.8274]
[1642083879553,102.66685761,156.72,156.66,3.8274]
[1642083879753,79.9394,156.72,156.66,3.8274]
[1642083879954,79.9394,156.72,156.66,4.0774]
[1642083880659,99.66798724,156.72,156.66,4.0774]
[1642083880861,99.92798724,156.72,156.66,4.0774]
[1642083881057,97.37598724,156.72,156.66,4.0774]
[1642083881959,105.92798724,156.72,156.66,4.0774]
[1642083882159,106.17798724,156.72,156.66,0.0074]
[1642083882460,106.17798724,156.72,156.65,3.8295]
[1642083882860,115.75118724,156.72,156.65,0.0095]
[1642083883060,47.7461,156.71,156.65,0.0095]
[1642083883260,2.552,156.7,156.65,0.0095]
[1642083883464,22.28650813,156.69,156.64,3.8297]
[1642083883663,2.553,156.68,156.64,3.8297]
[1642083883865,2.553,156.68,156.56,9.45]
[1642083884163,24.0386,156.67,156.56,15.45]
[1642083884363,2.554,156.66,156.56,15.45]
[1642083884563,2.804,156.66,156.56,15.45]
[1642083884768,2.804,156.66,156.61,3.8302]
[1642083884963,2.804,156.66,156.59,12.7665]
[1642083884964,16.844,156.66,156.54,9.2]
[1642083885770,102.2103,156.65,156.54,9.2]
[1642083885976,34.98046553,156.64,156.58,3.8312]
[1642083886366,41.23046553,156.64,156.58,3.8312]
[1642083886967,41.49046553,156.64,156.58,3.8312]
[1642083889270,41.23046553,156.64,156.58,3.8312]
[1642083889470,31.65246553,156.64,156.58,3.8312]
[1642083890473,31.40246553,156.64,156.58,3.8312]
[1642083890674,28.84846553,156.64,156.58,3.8312]
[1642083890876,29.10846553,156.64,156.58,3.8312]
[1642083891075,28.84846553,156.64,156.58,3.8312]
[1642083891778,102.2103,156.65,156.58,3.8312]
[1642083891977,102.2103,156.65,156.58,70.15363386]
[1642083893978,102.2103,156.65,156.58,5.54363386]
[1642083894178,102.2103,156.65,156.58,5.28363386]
[1642083894380,102.2103,156.65,156.58,3.8312]
[1642083894578,104.7643,156.65,156.58,3.8312]
[1642083894817,105.0143,156.65,156.58,3.8312]
[1642083895213,17.36894999,156.64,156.58,3.8312]
[1642083895617,23.61894999,156.64,156.58,3.8312]
[1642083896614,33.19674999,156.64,156.58,3.8312]
[1642083897014,33.19674999,156.64,156.57,3.8314]
[1642083897015,2.554,156.63,156.57,3.8314]
[1642083897415,8.804,156.63,156.57,3.8314]
[1642083898016,18.3823,156.63,156.57,3.8314]
[1642083898617,8.804,156.63,156.57,3.8314]
[1642083898817,6.25,156.63,156.57,3.8314]
[1642083899021,0.25,156.63,156.57,3.8314]
[1642083899318,6.25,156.63,156.57,3.8314]
[1642083899717,6.0,156.63,156.57,4.0814]
[1642083899918,23.36894999,156.64,156.57,5.28383386]
[1642083900318,25.92294999,156.64,156.57,5.03383386]
[1642083900518,25.92294999,156.64,156.57,4.0814]
[1642083900920,23.62894999,156.64,156.57,4.0814]
[1642083901120,23.87894999,156.64,156.57,4.0814]
[1642083901819,6.26,156.64,156.57,4.0814]
[1642083902118,104.7643,156.65,156.57,4.0814]
[1642083902119,102.2103,156.65,156.58,1.20243386]
[1642083902320,78.2715,156.65,156.61,3.8294]
[1642083902528,6.0,156.65,156.61,4.0794]
[1642083902720,156.3642,156.7,156.61,5.28183386]
[1642083902921,123.74759811,156.7,156.61,5.28183386]
[1642083903124,123.99759811,156.7,156.61,5.28183386]
[1642083903327,126.55059811,156.7,156.61,5.28183386]
[1642083903529,126.81059811,156.7,156.61,5.28183386]
[1642083903723,102.3727,156.7,156.61,5.28183386]
[1642083903923,99.8197,156.7,156.62,64.61]
[1642083904127,99.8197,156.7,156.66,3.8284]
[1642083904326,23.6352,156.7,156.66,3.8284]
[1642083904526,23.6352,156.7,156.66,4.0784]
[1642083904726,23.6352,156.7,156.66,6.93825906]
[1642083904926,23.255,156.71,156.66,6.93825906]
[1642083905132,23.255,156.71,156.66,8.14069292]
[1642083905334,72.8797,156.72,156.66,8.14069292]
[1642083905528,72.8797,156.72,156.67,9.2]
[1642083905960,72.8797,156.72,156.69,3.8272]
[1642083906162,48.0679,156.77,156.69,3.8272]
[1642083906356,48.0679,156.77,156.69,4.0772]
[1642083906557,54.0679,156.77,156.69,4.0772]
[1642083907059,54.3179,156.77,156.69,4.0772]
[1642083907858,54.5779,156.77,156.69,4.0772]
[1642083908261,56.8799,156.77,156.69,4.0772]
[1642083909461,57.1299,156.77,156.69,4.0772]
[1642083909664,56.8799,156.77,156.69,4.0772]
[1642083909861,54.3279,156.77,156.69,4.0772]
[1642083910062,56.6199,156.77,156.69,4.0972]
[1642083910263,56.6199,156.77,156.69,4.1172]
[1642083910468,50.6199,156.77,156.69,4.1172]
[1642083910663,48.0679,156.77,156.69,4.1172]
[1642083910863,56.6199,156.77,156.69,4.1172]
[1642083911463,54.0679,156.77,156.69,4.1172]
[1642083912062,48.0679,156.77,156.69,4.1172]
[1642083912666,2.552,156.76,156.69,0.04]
[1642083913063,8.802,156.76,156.69,0.04]
[1642083913662,21.02886917,156.75,156.69,0.04]
[1642083913863,2.552,156.74,156.69,3.868]
[1642083914068,2.552,156.75,156.69,3.868]
[1642083914267,2.802,156.76,156.69,3.868]
[1642083914468,8.802,156.76,156.69,3.868]
[1642083914665,2.802,156.76,156.69,3.868]
[1642083914866,17.11202657,156.75,156.69,3.868]
[1642083915066,23.37202657,156.75,156.69,3.868]
[1642083915266,17.62202657,156.75,156.69,3.868]
[1642083915465,17.37202657,156.75,156.69,3.868]
[1642083915666,17.11202657,156.75,156.69,3.868]
[1642083915867,23.11202657,156.75,156.69,3.868]
[1642083916266,2.552,156.74,156.69,0.04]
[1642083916466,8.552,156.74,156.69,0.04]
[1642083917070,8.812,156.74,156.69,0.04]
[1642083917267,18.6336,156.74,156.62,32.90993386]
[1642083917468,96.6029,156.73,156.62,8.7]
[1642083917671,2.553,156.72,156.62,8.7]
[1642083918069,19.36611886,156.71,156.62,8.7]
[1642083918470,43.79761886,156.71,156.62,8.95]
[1642083918669,43.79761886,156.71,156.64,3.8294]
[1642083919572,2.553,156.7,156.58,12.7659]
[1642083919771,2.553,156.7,156.57,9.603]
[1642083919969,16.841,156.7,156.55,10.40243386]
[1642083920170,27.69099521,156.7,156.55,9.2]
[1642083920571,27.95099521,156.7,156.55,9.2]
[1642083920770,26.041,156.7,156.55,9.2]
[1642083920970,26.041,156.7,156.57,3.8311]
[1642083921172,6.25,156.7,156.58,6.15599379]
[1642083921371,6.0,156.7,156.66,0.02]
[1642083921575,26.7345,156.71,156.66,0.02]
[1642083921777,32.7345,156.71,156.66,0.02]
[1642083922373,26.7345,156.71,156.59,72.32243386]
[1642083922574,50.68417966,156.71,156.59,72.32243386]
[1642083922874,44.68417966,156.71,156.66,3.8291]
[1642083923074,44.93417966,156.71,156.66,3.8291]
[1642083923274,50.93417966,156.71,156.62,12.7635]
[1642083923574,50.69417966,156.71,156.62,12.7635]
[1642083923974,60.26757966,156.71,156.6,12.7656]
[1642083924975,60.26757966,156.71,156.63,3.8298]
[1642083925178,60.26757966,156.71,156.58,12.767]
[1642083927181,124.87757966,156.71,156.61,3.8303]
[1642083927579,124.87757966,156.71,156.57,9.2]
[1642083927979,134.07757966,156.71,156.57,9.2]
[1642083929080,134.07757966,156.71,156.59,3.8308]
[1642083929683,133.82757966,156.71,156.59,3.8308]
[1642083931084,135.72757487,156.71,156.54,13.97243386]
[1642083931383,209.31717487,156.71,156.54,12.77]
[1642083931582,209.31717487,156.71,156.54,13.02]
[1642083931783,209.31717487,156.71,156.54,12.77]
[1642083931984,114.98,156.68,156.5,9.6149]
[1642083932211,114.98,156.68,156.49,0.0002]
[1642083932212,64.61,156.59,156.49,0.0002]
[1642083932386,75.3455,156.58,156.49,0.0002]
[1642083932584,106.5189,156.58,156.49,0.0002]
[1642083933082,9.5837,156.55,156.49,0.0002]
[1642083933483,15.8337,156.55,156.49,0.0002]
[1642083933684,2.555,156.54,156.49,0.0002]
[1642083933883,8.805,156.55,156.49,0.0002]
[1642083934584,9.5845,156.53,156.49,0.0002]
[1642083935084,2.555,156.52,156.49,0.0002]
[1642083935285,6.06439994,156.51,156.49,0.0002]
[1642083935484,87.24129994,156.51,156.49,0.0002]
[1642083935685,96.82809994,156.51,156.49,0.0002]
[1642083935888,97.08809994,156.51,156.49,0.0002]
[1642083936287,165.165,156.5,156.49,0.0002]
[1642083936488,171.415,156.5,156.49,0.0002]
[1642083937289,181.0034,156.5,156.49,0.0002]
[1642083937889,116.3934,156.5,156.49,0.0002]
[1642083938189,6.0,156.5,156.49,0.0002]
[1642083938389,40.0,156.5,156.49,0.0002]
[1642083938789,34.0,156.5,156.49,0.0002]
[1642083939992,77.95909997,156.51,156.49,3.8332]
[1642083940190,23.6788,156.53,156.49,3.8332]
[1642083941492,23.9388,156.53,156.49,3.8332]
[1642083941692,74.33,156.56,156.49,3.8332]
[1642083941895,74.33,156.56,156.49,4.0832]
[1642083942495,74.33,156.56,156.49,10.0832]
[1642083942893,74.33,156.56,156.49,4.0832]
[1642083943092,74.58,156.56,156.49,4.0832]
[1642083943994,74.84,156.56,156.49,4.0832]
[1642083946495,6.26,156.56,156.49,3.8332]
[1642083946697,6.0,156.56,156.49,3.8332]
[1642083946997,2.555,156.55,156.49,3.8332]
[1642083947225,25.5521,156.58,156.49,3.8332]
[1642083947732,31.5521,156.58,156.49,3.8332]
[1642083947928,31.8021,156.58,156.49,3.8332]
[1642083948129,41.3836,156.58,156.49,3.8332]
[1642083949130,41.3836,156.58,156.49,0.0002]
[1642083949331,64.61,156.57,156.49,0.0002]
[1642083949535,9.5843,156.54,156.49,0.0002]
[1642083949736,2.555,156.53,156.49,0.0002]
[1642083949937,2.555,156.55,156.49,0.0002]
[1642083950133,6.0,156.53,156.49,0.0002]
[1642083950335,0.26,156.55,156.49,0.0002]
[1642083950932,30.6594,156.56,156.49,3.8336]
[1642083951135,30.9194,156.56,156.49,3.8336]
[1642083951333,30.9194,156.56,156.49,4.0836]
[1642083951938,31.1694,156.56,156.49,4.0836]
[1642083952134,40.7521,156.56,156.49,3.8336]
[1642083952336,67.165,156.55,156.42,9.2]
[1642083952535,107.4774,156.55,156.39,18.7538]
[1642083952736,104.2642,156.54,156.39,24.7538]
[1642083952940,67.166,156.53,156.39,24.7538]
[1642083953135,24.3698,156.52,156.39,24.7538]
[1642083953336,25.11223195,156.51,156.4,23.27275367]
[1642083953537,28.80623195,156.51,156.4,23.52275367]
[1642083953737,23.7935,156.5,156.39,9.2]
[1642083953936,64.61,156.49,156.39,15.2]
[1642083954137,2.556,156.48,156.35,9.2]
[1642083954437,2.557,156.48,156.36,97.0]
[1642083954640,2.557,156.48,156.39,3.8358]
[1642083954641,9.5879,156.48,156.39,3.8358]
[1642083954839,9.5879,156.48,156.4,18.05680791]
[1642083955448,2.556,156.47,156.4,18.05680791]
[1642083955641,12.1445,156.47,156.4,21.89230791]
[1642083955842,9.5885,156.47,156.4,21.89230791]
[1642083956041,9.5885,156.47,156.4,22.14230791]
[1642083956240,6.25,156.47,156.4,22.14230791]
[1642083956641,0.25,156.47,156.4,22.14230791]
[1642083956841,6.0,156.49,156.4,22.14230791]
[1642083957141,6.25,156.49,156.4,22.14230791]
[1642083957541,8.806,156.49,156.4,22.14230791]
[1642083959242,18.3931,156.49,156.4,22.14230791]
[1642083960645,8.556,156.49,156.4,22.14230791]
[1642083960846,2.556,156.49,156.4,32.54900081]
[1642083961044,2.556,156.49,156.4,38.54900081]
[1642083961443,74.427,156.54,156.4,49.13579275]
[1642083961646,50.9565,156.6,156.4,49.13579275]
[1642083961944,19.07432855,156.59,156.5,3.8323]
[1642083962147,2.555,156.58,156.5,24.83385494]
[1642083962344,8.555,156.59,156.5,25.08385494]
[1642083962545,2.555,156.59,156.5,25.08385494]
[1642083962745,8.555,156.59,156.5,31.08385494]
[1642083963347,2.555,156.59,156.5,31.08385494]
[1642083963747,2.555,156.59,156.5,25.08385494]
[1642083963946,2.555,156.59,156.5,31.08385494]
[1642083964546,127.0238,156.6,156.51,2.555]
[1642083964747,127.0238,156.6,156.55,3.8315]
[1642083965047,2.555,156.62,156.55,4.0815]
[1642083965450,8.555,156.62,156.55,4.0815]
[1642083965647,8.555,156.62,156.55,3.8315]
[1642083965848,8.555,156.62,156.56,21.04908205]
[1642083966047,6.0,156.62,156.56,21.04908205]
[1642083966248,6.0,156.62,156.57,3.8314]
[1642083966449,15.22404907,156.63,156.57,3.8314]
[1642083967049,15.22404907,156.63,156.57,4.0814]
[1642083967450,15.22404907,156.63,156.57,3.8314]
[1642083967649,15.22404907,156.63,156.57,4.0814]
[1642083967650,6.92004907,156.63,156.57,4.0814]
[1642083969250,12.92004907,156.63,156.57,4.0814]
[1642083969651,12.92004907,156.63,156.57,3.8314]
[1642083969855,6.67004907,156.63,156.57,4.0814]
[1642083970154,2.554,156.64,156.61,41.0]
[1642083970353,2.553,156.73,156.62,2.553]
[1642083970559,535.61042818,156.74,156.63,73.81]
[1642083970754,6.944e-05,156.71,156.64,2.553]
[1642083970951,6.944e-05,156.71,156.64,26.40075808]
[1642083971356,5.40581484,156.74,156.66,3.8283]
[1642083971552,17.21921323,156.76,156.67,26.35406008]
[1642083971755,2.553,156.79,156.67,26.35406008]
[1642083971952,2.553,156.79,156.67,32.60406008]
[1642083972352,2.553,156.79,156.71,3.8275]
[1642083972554,2.553,156.79,156.71,4.0775]
[1642083972752,2.553,156.79,156.72,23.56674897]